bitfinex/quotes_ETHUSD_20250406
["timestamp","ask_amount","ask_price","bid_price","bid_amount"]
[1743980802133,9.92673,1568.2,1568.1,0.02]
[1743980802373,6.37831,1567.9,1567.7,0.04924184]
[1743980802702,47.05037371,1567.8,1567.7,0.04924184]
[1743980803382,38.43137371,1567.8,1567.7,0.04924184]
[1743980803663,48.35973371,1567.8,1567.7,0.04924184]
[1743980804167,7.24392,1567.3,1567.1,0.02]
[1743980804471,8.80237371,1567.2,1567.1,0.02]
[1743980805460,3.9174,1567.1,1566.1,0.02]
[1743980805654,0.9174,1566.5,1566.1,6.40513]
[1743980805836,8.621,1566.4,1566.1,6.40513]
[1743980806033,8.621,1566.4,1566.2,6.38484]
[1743980806367,8.621,1566.4,1566.1,0.02]
[1743980806368,8.621,1566.4,1566.1,6.40525]
[1743980806579,8.621,1566.4,1566.3,6.38447]
[1743980806782,0.17037371,1566.7,1566.3,6.38447]
[1743980806983,0.17037371,1566.7,1566.6,6.38325]
[1743980807281,10.30485622,1567.6,1567.3,6.38032]
[1743980807282,38.285,1567.6,1567.3,6.38032]
[1743980807458,38.285,1567.6,1566.7,0.8909]
[1743980807459,38.285,1567.6,1567.2,6.38048]
[1743980807651,38.285,1567.6,1566.8,6.38243]
[1743980807846,38.285,1567.6,1567.3,6.37999]
[1743980808184,38.285,1567.6,1567.4,6.37972]
[1743980808557,38.285,1567.6,1567.2,6.38077]
[1743980808760,38.285,1567.6,1566.9,7.020263]
[1743980808990,38.285,1567.6,1567.1,6.38085]
[1743980809178,38.285,1567.6,1567.2,6.38078]
[1743980809352,44.66447,1567.6,1566.9,6.38195]
[1743980809689,51.04393,1567.6,1567.0,6.38142]
[1743980809871,3.0,1567.5,1566.6,6.3831]
[1743980810072,8.62,1567.4,1567.3,6.38039]
[1743980810248,8.62,1567.4,1566.9,6.38201]
[1743980810454,3.0,1567.3,1566.7,6.38247]
[1743980810683,3.0,1567.3,1566.8,12.76442]
[1743980810879,13.30634622,1567.3,1566.7,6.3828]
[1743980811086,0.70676123,1567.2,1566.6,6.38301]
[1743980811287,0.70676123,1567.2,1566.8,6.3822]
[1743980811453,3.92565622,1567.3,1567.0,6.38147]
[1743980811651,3.92565622,1567.3,1566.9,6.38185]
[1743980811853,8.62,1567.4,1567.2,6.38045]
[1743980812050,8.62,1567.4,1566.7,6.38248]
[1743980812295,8.62,1567.4,1567.2,12.76101]
[1743980812721,8.62,1567.4,1567.2,6.3804]
[1743980812876,38.285,1567.6,1567.5,6.37958]
[1743980813267,38.285,1567.6,1567.1,7.27799]
[1743980813468,38.285,1567.6,1567.4,6.37995]
[1743980813666,38.285,1567.6,1567.5,6.37958]
[1743980814295,8.631,1567.8,1567.7,6.37877]
[1743980814589,8.616,1568.1,1567.8,6.3783]
[1743980814761,8.616,1568.1,1568.0,6.37755]
[1743980814970,8.616,1568.1,1567.8,6.3781]
[1743980815182,8.616,1568.1,1567.9,6.37793]
[1743980815556,8.616,1568.1,1567.8,6.37834]
[1743980815767,8.616,1568.1,1568.0,6.37755]
[1743980816493,0.02,1568.9,1568.3,6.37633]
[1743980816694,0.33243119,1569.1,1569.0,6.37348]
[1743980816896,7.33194,1569.7,1569.0,6.37348]
[1743980817107,11.064949,1569.7,1569.1,6.37275]
[1743980817255,8.678,1569.6,1569.1,6.37275]
[1743980817457,8.678,1569.6,1569.1,12.74565]
[1743980817717,0.9611,1569.7,1569.3,6.37189]
[1743980817892,9.6261,1569.7,1569.1,6.37306]
[1743980818091,9.6261,1569.7,1569.1,6.37291]
[1743980818258,9.6261,1569.7,1569.2,6.37227]
[1743980818462,9.6261,1569.7,1569.0,6.37311]
[1743980818463,15.99692,1569.7,1569.0,6.37311]
[1743980818661,11.19486123,1569.7,1569.1,6.37292]
[1743980818904,3.0,1569.6,1569.0,12.74669]
[1743980819072,9.6261,1569.7,1569.1,6.37293]
[1743980819273,6.3718,1569.5,1568.8,6.37413]
[1743980819570,6.37241,1569.3,1568.6,6.37505]
[1743980819788,15.93698,1569.2,1568.6,12.7499]
[1743980819990,22.31001,1569.2,1568.6,6.37485]
[1743980820189,3.0,1569.1,1568.5,6.37546]
[1743980820499,3.0,1569.1,1568.1,6.3769]
[1743980820500,9.37411,1568.9,1568.1,6.3769]
[1743980820696,8.622,1568.8,1568.3,6.37614]
[1743980820889,8.622,1568.8,1568.3,12.75228]
[1743980821086,8.622,1568.8,1568.1,6.37714]
[1743980821286,3.9514,1568.7,1567.8,6.3783]
[1743980821599,3.9514,1568.7,1568.3,6.3761]
[1743980821600,38.288,1568.6,1568.3,6.3761]
[1743980821808,38.288,1568.6,1568.4,6.37569]
[1743980821964,38.288,1568.6,1568.5,6.37551]
[1743980822608,38.288,1568.6,1568.4,6.37569]
[1743980822767,38.288,1568.6,1568.5,6.37551]
[1743980822965,38.288,1568.6,1568.2,0.958]
[1743980823170,0.9645,1568.4,1567.8,6.37815]
[1743980823470,8.593,1568.3,1567.9,6.37777]
[1743980823973,8.593,1568.3,1568.0,6.37734]
[1743980824170,8.593,1568.3,1568.2,6.37673]
[1743980824415,8.593,1568.3,1568.1,6.37678]
[1743980824701,8.593,1568.3,1568.2,6.37673]
[1743980825088,38.288,1568.6,1568.2,6.37673]
[1743980825089,8.58,1568.4,1568.3,6.37633]
[1743980825305,46.865,1568.6,1568.4,6.37592]
[1743980825503,46.865,1568.6,1568.4,12.75151]
[1743980825703,46.865,1568.6,1568.4,6.37574]
[1743980825910,46.865,1568.6,1568.1,6.37714]
[1743980826213,46.865,1568.6,1568.4,6.37565]
[1743980826715,46.865,1568.6,1568.3,6.37611]
[1743980826911,46.865,1568.6,1568.4,6.37588]
[1743980827123,46.865,1568.6,1568.4,6.3757]
[1743980827282,46.865,1568.6,1568.1,6.37696]
[1743980827620,46.865,1568.6,1568.5,6.37551]
[1743980827904,8.555,1569.0,1568.8,12.74824]
[1743980828112,38.285,1569.2,1569.1,6.37308]
[1743980828477,38.235,1569.2,1569.1,6.37308]
[1743980829782,46.772,1569.2,1569.1,6.37308]
[1743980830871,6.38988,1569.9,1569.1,6.37308]
[1743980830872,0.02,1569.9,1569.4,6.37168]
[1743980831103,0.02,1569.9,1569.8,6.37023]
[1743980831527,0.02,1569.9,1569.7,6.37041]
[1743980832025,0.02,1569.9,1569.5,6.37118]
[1743980832224,0.02,1569.9,1569.1,1.274638]
[1743980832225,0.9747,1569.8,1569.4,6.37169]
[1743980832425,0.9747,1569.8,1569.3,6.37208]
[1743980832625,9.3901,1569.9,1569.3,6.37207]
[1743980832944,0.93901,1569.8,1569.3,12.7441]
[1743980833107,6.37145,1569.6,1568.6,7.35708]
[1743980833309,3.0,1569.4,1568.3,7.1423]
[1743980833525,0.9155,1568.9,1568.5,6.37528]
[1743980833842,8.515,1568.8,1568.5,6.37528]
[1743980834046,8.515,1568.8,1568.1,7.014526]
[1743980834047,38.273,1568.7,1568.2,6.3767]
[1743980834196,38.273,1568.7,1568.4,6.37565]
[1743980834395,38.273,1568.7,1568.3,6.37633]
[1743980834605,38.273,1568.7,1568.1,6.37708]
[1743980834808,39.21201,1568.7,1568.3,6.37633]
[1743980835094,6.37528,1568.6,1568.1,6.37713]
[1743980835291,6.92517,1568.6,1567.7,7.3456]
[1743980835590,3.55,1568.2,1567.7,6.3784]
[1743980835796,8.492,1568.1,1567.4,7.28083]
[1743980835999,8.492,1568.1,1567.7,6.3786]
[1743980836223,8.492,1568.1,1567.7,12.75711]
[1743980836395,0.9496,1568.4,1567.9,6.37769]
[1743980836592,8.479,1568.3,1568.1,6.37709]
[1743980836821,0.9496,1568.4,1567.9,6.3779]
[1743980837125,8.475,1568.4,1568.3,6.37633]
[1743980837329,8.475,1568.4,1567.9,6.37758]
[1743980837531,9.92739,1568.1,1567.5,6.37942]
[1743980837730,46.756,1568.0,1567.5,6.37942]
[1743980837940,46.756,1568.0,1567.4,6.37994]
[1743980837941,1.502,1567.8,1567.4,6.37994]
[1743980838138,1.502,1567.8,1567.1,6.40115]
[1743980838139,8.477,1567.7,1567.1,6.40115]
[1743980838343,8.477,1567.7,1567.2,6.38052]
[1743980838556,8.477,1567.7,1567.1,0.02]
[1743980838557,6.37999,1567.4,1567.1,0.02]
[1743980838702,10.8526,1567.2,1567.1,0.02]
[1743980838909,6.38245,1566.8,1566.2,6.38459]
[1743980839204,0.55,1567.0,1566.4,6.38379]
[1743980839205,8.527,1566.7,1566.4,6.38379]
[1743980839523,8.517,1566.6,1566.1,6.40526]
[1743980839727,9.0846,1566.5,1566.1,0.02]
[1743980839924,38.286,1566.4,1566.1,0.02]
[1743980840152,0.9587,1566.1,1565.6,6.38716]
[1743980840359,0.9587,1566.1,1566.0,6.38569]
[1743980840640,8.543,1566.1,1566.0,6.38569]
[1743980840813,14.92834,1566.1,1565.1,0.9571]
[1743980841143,47.8507,1566.4,1566.1,6.38504]
[1743980841345,3.55,1566.3,1565.6,6.38721]
[1743980841530,47.8507,1566.4,1566.2,6.38479]
[1743980841704,47.8507,1566.4,1566.2,12.76936]
[1743980841901,47.8507,1566.4,1566.0,6.38539]
[1743980842110,47.8507,1566.4,1566.3,6.38447]
[1743980842333,47.8507,1566.4,1565.3,0.9363]
[1743980842541,9.93479,1566.3,1565.6,6.38729]
[1743980842743,0.9015,1566.0,1565.0,0.9363]
[1743980842956,3.0,1565.8,1565.0,0.9363]
[1743980843247,3.0,1565.4,1565.0,6.38943]
[1743980843416,8.674,1565.4,1565.0,6.38949]
[1743980843622,8.674,1565.4,1565.1,6.40918]
[1743980843852,8.674,1565.4,1565.2,6.38883]
[1743980844070,0.9139,1566.0,1565.3,6.38849]
[1743980844251,0.9139,1566.0,1565.7,6.38671]
[1743980844252,9.6209,1566.0,1565.7,6.38671]
[1743980844449,9.6209,1566.0,1565.7,6.38691]
[1743980844751,8.707,1566.0,1565.7,6.3866]
[1743980844910,8.707,1566.0,1565.3,6.3883]
[1743980845107,8.707,1566.0,1565.5,6.38744]
[1743980845343,8.707,1566.0,1565.4,6.38814]
[1743980845557,8.707,1566.0,1565.7,6.3869]
[1743980845918,0.9673,1565.8,1565.7,6.38691]
[1743980846114,8.707,1566.0,1565.9,6.3861]
[1743980846314,3.0,1565.9,1565.3,6.38855]
[1743980846630,3.0,1565.9,1565.3,6.38835]
[1743980846631,0.9272,1565.8,1565.3,6.38835]
[1743980846824,0.9272,1565.8,1565.1,0.02]
[1743980846825,8.707,1566.0,1565.2,6.38893]
[1743980847054,8.707,1566.0,1565.8,6.38631]
[1743980847347,8.707,1566.0,1565.9,6.3861]
[1743980847511,8.707,1566.0,1565.7,6.38689]
[1743980847714,3.55,1565.9,1565.5,6.38733]
[1743980847938,0.55,1565.7,1565.2,6.38895]
[1743980848232,0.9945,1565.8,1565.1,0.02]
[1743980848433,0.9945,1565.8,1565.3,6.38828]
[1743980848653,0.88237868,1565.7,1565.1,0.02]
[1743980848878,0.88237868,1565.7,1565.5,6.38773]
[1743980848879,8.765,1565.6,1565.5,6.38773]
[1743980849588,9.09734779,1565.6,1565.3,6.38851]
[1743980849875,5.44603478,1565.5,1565.1,0.02]
[1743980850081,0.55,1565.2,1565.1,0.02]
[1743980850259,8.781,1565.3,1565.1,0.02]
[1743980850699,8.781,1565.3,1565.1,6.40918]
[1743980850868,0.55,1565.2,1564.7,6.39077]
[1743980851070,0.9038,1565.1,1564.7,12.78149]
[1743980851266,0.9038,1565.1,1564.9,6.39002]
[1743980851823,43.16905622,1565.4,1564.9,6.39002]
[1743980852106,38.336,1565.4,1565.3,6.38855]
[1743980852472,8.775,1565.9,1565.8,6.38651]
[1743980852673,8.776,1566.0,1565.9,6.3861]
[1743980853010,47.128,1566.1,1565.9,6.3861]
[1743980853314,47.128,1566.1,1565.9,6.38571]
[1743980853516,47.128,1566.1,1565.9,6.38604]
[1743980853673,47.128,1566.1,1565.8,6.38625]
[1743980853873,0.55,1566.0,1565.7,6.3869]
[1743980854141,47.128,1566.1,1565.9,6.38576]
[1743980854331,47.128,1566.1,1566.0,6.38569]
[1743980854485,47.128,1566.1,1565.9,6.38576]
[1743980854824,47.128,1566.1,1566.0,6.38569]
[1743980854981,9.6963,1566.6,1566.5,6.38365]
[1743980855319,3.0,1566.5,1566.1,6.38527]
[1743980855473,9.6963,1566.6,1566.3,6.3843]
[1743980855785,3.0,1566.5,1566.1,6.38508]
[1743980855974,3.0,1566.5,1565.9,6.3861]
[1743980856174,3.0,1566.3,1565.5,6.38762]
[1743980856375,0.55,1566.0,1565.5,6.38742]
[1743980856584,3.55,1565.8,1565.3,6.38838]
[1743980856810,6.38859,1565.3,1564.7,6.39095]
[1743980857014,0.9827,1564.8,1564.1,0.02]
[1743980857235,0.55,1564.4,1564.1,0.02]
[1743980857507,10.89304,1564.2,1564.1,0.02]
[1743980857903,10.89304,1564.2,1563.6,0.55]
[1743980857904,3.0,1563.9,1563.6,0.55]
[1743980858098,4.5408,1563.7,1563.6,0.55]
[1743980858343,14.86153622,1563.7,1563.6,0.55]
[1743980858836,8.46645622,1563.7,1563.6,0.55]
[1743980859036,17.45045622,1563.7,1563.6,0.55]
[1743980859333,23.84553622,1563.7,1563.6,0.55]
[1743980859633,3.5387,1563.6,1563.1,0.02]
[1743980859835,0.55,1563.5,1563.1,0.02]
[1743980860024,3.5387,1563.6,1563.1,0.02]
[1743980860213,0.55,1563.5,1563.1,0.02]
[1743980860532,38.348,1563.8,1563.5,6.39564]
[1743980860736,38.348,1563.8,1563.6,6.39509]
[1743980860907,38.348,1563.8,1563.1,0.02]
[1743980861113,38.348,1563.8,1563.7,6.39508]
[1743980861745,9.051,1564.1,1564.0,6.39386]
[1743980862039,9.046,1564.6,1563.9,6.39396]
[1743980862251,6.39229,1564.4,1563.6,6.39535]
[1743980862539,9.39351,1564.1,1563.3,6.39671]
[1743980862742,0.55,1563.8,1563.3,6.39671]
[1743980862950,0.55,1563.6,1563.2,6.39712]
[1743980863155,9.94552,1563.6,1563.1,0.02]
[1743980863316,3.55,1563.6,1563.1,0.02]
[1743980863518,4.4546,1563.6,1563.1,0.02]
[1743980863709,3.0,1563.6,1563.2,6.39676]
[1743980864243,0.9492,1563.7,1563.1,0.02]
[1743980864443,6.39606,1563.5,1563.1,0.02]
[1743980864748,9.052,1563.9,1563.5,6.39567]
[1743980865040,9.052,1563.9,1563.6,6.39528]
[1743980865242,9.052,1563.9,1563.8,6.39467]
[1743980865405,9.052,1563.9,1563.1,0.911]
[1743980865610,9.052,1563.9,1563.5,12.79132]
[1743980865809,0.9243,1564.6,1564.4,6.39215]
[1743980866073,6.39034,1564.9,1564.2,6.39269]
[1743980866359,0.85954402,1564.9,1564.3,6.39232]
[1743980866718,10.0183,1565.0,1564.2,6.39304]
[1743980867042,0.02,1564.9,1563.9,6.39399]
[1743980867257,6.39255,1564.4,1563.8,6.39466]
[1743980867473,3.55,1564.2,1563.1,0.9776]
[1743980867758,0.355,1564.1,1563.4,6.39631]
[1743980867955,6.94327,1564.2,1563.3,6.39672]
[1743980868109,38.388,1564.3,1564.0,6.39386]
[1743980868310,9.136,1564.5,1564.3,6.39226]
[1743980868508,9.136,1564.5,1564.4,6.39222]
[1743980869066,9.136,1564.5,1563.7,1.628449]
[1743980869282,9.136,1564.5,1564.2,6.39278]
[1743980869554,9.136,1564.5,1564.1,12.78635]
[1743980869726,9.136,1564.5,1564.1,12.78641]
[1743980869926,9.136,1564.5,1563.7,7.38371]
[1743980869927,9.136,1564.5,1564.0,6.3938]
[1743980870121,9.136,1564.5,1564.0,6.39367]
[1743980870457,9.136,1564.5,1564.0,12.7874]
[1743980870621,9.136,1564.5,1564.0,6.39383]
[1743980870813,9.136,1564.5,1563.7,7.3839]
[1743980871025,9.136,1564.5,1564.1,6.39311]
[1743980871438,9.136,1564.5,1564.1,12.78635]
[1743980871746,38.393,1564.7,1564.3,6.39234]
[1743980871949,38.393,1564.7,1564.3,6.39261]
[1743980872150,0.02,1564.9,1564.8,6.39059]
[1743980872336,0.02,1564.9,1564.8,6.45448561]
[1743980872516,0.02,1564.9,1564.8,7.33829]
[1743980872712,0.02,1564.9,1564.5,6.39148]
[1743980873017,9.118,1564.9,1564.0,0.9477]
[1743980873216,9.118,1564.9,1564.3,6.39259]
[1743980873217,16.45338379,1564.9,1564.3,6.39259]
[1743980873512,16.45338379,1564.9,1564.3,12.78496]
[1743980873745,16.45338379,1564.9,1564.3,6.39248]
[1743980873957,16.45326379,1564.9,1564.2,6.39283]
[1743980874114,22.84377379,1564.9,1564.3,6.39262]
[1743980874314,3.62369744,1564.8,1564.2,6.39283]
[1743980875043,3.62369744,1564.8,1564.3,6.39242]
[1743980875418,3.0,1564.5,1563.7,0.9899]
[1743980875621,9.034,1564.4,1564.0,6.39348]
[1743980875812,38.39,1564.5,1564.3,6.39233]
[1743980876012,38.39,1564.5,1564.4,6.39222]
[1743980876247,0.02,1564.9,1564.7,6.39066]
[1743980876248,9.057,1564.9,1564.7,6.39066]
[1743980876468,0.02,1564.9,1564.8,6.39059]
[1743980876816,0.02,1564.9,1564.8,6.45448503]
[1743980877013,0.02,1564.9,1564.8,6.39059]
[1743980878247,0.02,1564.9,1564.7,12.78148]
[1743980878248,0.02,1564.9,1564.7,6.39092]
[1743980878417,0.02,1564.9,1564.8,6.39059]
[1743980878611,0.02,1564.9,1564.3,0.9972]
[1743980878863,0.02,1564.9,1564.8,6.39059]
[1743980879159,0.02,1564.9,1564.8,7.668731]
[1743980879362,0.02,1564.9,1564.8,7.73263139]
[1743980879728,0.02,1564.9,1564.8,7.668731]
[1743980879924,0.02,1564.9,1564.8,6.39059]
[1743980880726,9.001,1564.9,1564.5,6.39142]
[1743980881062,9.001,1564.9,1564.8,6.39059]
[1743980881264,47.381,1564.9,1564.0,7.32501]
[1743980881448,47.381,1564.9,1564.4,6.39222]
[1743980881619,6.39156,1564.6,1564.0,6.39353]
[1743980881821,3.0,1564.8,1563.8,6.39464]
[1743980882070,51.30665622,1564.9,1563.7,7.81306927]
[1743980882247,51.30665622,1564.9,1563.7,7.32619]
[1743980882248,6.39163,1564.6,1563.7,7.32619]
[1743980882451,6.39281,1564.3,1563.7,7.32615]
[1743980882759,6.39281,1564.3,1563.4,4.91039411]
[1743980882760,3.0,1564.1,1563.4,7.3045]
[1743980882926,38.38,1564.1,1564.0,6.39386]
[1743980883565,38.38,1564.1,1563.8,12.78928]
[1743980883765,38.38,1564.1,1564.0,6.39386]
[1743980884068,8.977,1564.5,1564.3,6.39243]
[1743980884233,9.8747,1564.5,1564.0,6.39371]
[1743980884434,8.977,1564.5,1564.3,6.39233]
[1743980884755,8.977,1564.5,1564.1,12.78632]
[1743980884918,8.977,1564.5,1563.6,6.39549]
[1743980884919,0.9377,1564.4,1563.6,6.39549]
[1743980885119,0.9377,1564.4,1563.9,6.39401]
[1743980885354,6.39282,1564.3,1563.7,6.39508]
[1743980885665,6.39282,1564.3,1563.6,6.39544]
[1743980885666,9.3932,1564.2,1563.6,6.39525]
[1743980885878,0.9205,1563.9,1563.2,7.39513]
[1743980886168,47.367,1563.8,1563.1,6.39754]
[1743980886373,38.387,1563.8,1563.7,6.39508]
[1743980886546,6.3951,1563.7,1563.1,6.39716]
[1743980886857,3.0,1563.7,1563.4,6.39617]
[1743980887161,42.31265622,1563.8,1563.5,6.39586]
[1743980887456,3.0,1563.7,1562.9,7.1582]
[1743980887658,3.0,1563.7,1563.3,6.39657]
[1743980887814,3.0,1563.7,1563.1,6.39729]
[1743980888019,6.39567,1563.6,1563.0,12.79578]
[1743980888329,6.39675,1563.3,1562.8,6.39869]
[1743980888528,9.003,1563.2,1562.5,0.640013]
[1743980888737,0.9403,1563.0,1562.5,6.39977]
[1743980888934,0.9403,1563.0,1562.3,0.9216]
[1743980888935,0.9403,1563.0,1562.6,6.39931]
[1743980889226,0.9403,1563.0,1562.5,6.39996]
[1743980889452,0.9403,1563.0,1562.3,0.9216]
[1743980889650,0.9403,1563.0,1562.3,1.653872]
[1743980889960,9.003,1563.2,1563.0,6.39765]
[1743980890161,9.003,1563.2,1563.1,6.39754]
[1743980890528,9.003,1563.2,1562.8,6.39876]
[1743980890729,9.003,1563.2,1562.8,6.39847]
[1743980890920,9.003,1563.2,1563.1,6.39754]
[1743980891122,9.003,1563.2,1562.3,7.3222]
[1743980891469,0.9092,1563.1,1562.6,6.39942]
[1743980891633,38.402,1563.0,1562.5,6.4]
[1743980891840,38.402,1563.0,1562.3,6.40077]
[1743980892058,38.402,1563.0,1562.6,6.3993]
[1743980892376,39.07046123,1563.0,1562.5,12.79978]
[1743980892577,39.07046123,1563.0,1562.5,6.39981]
[1743980892766,39.07046123,1563.0,1562.7,6.39894]
[1743980892947,38.402,1563.0,1562.7,12.79791]
[1743980893274,38.402,1563.0,1562.9,6.39836]
[1743980893446,38.402,1563.0,1562.7,6.39892]
[1743980893641,38.402,1563.0,1562.8,6.39847]
[1743980893846,10.87158622,1563.5,1563.3,6.39645]
[1743980893847,4.85235622,1563.5,1563.3,6.39645]
[1743980894169,3.0,1563.4,1562.6,0.9458]
[1743980894346,6.39691,1563.3,1562.7,6.39881]
[1743980894549,3.0,1563.2,1562.7,6.39881]
[1743980894962,3.0,1563.2,1562.8,6.39875]
[1743980895170,7.38402,1563.1,1562.5,6.39977]
[1743980895496,9.662402,1563.0,1562.7,6.39909]
[1743980895640,0.9862,1563.1,1562.6,6.39941]
[1743980895641,0.9862,1563.1,1562.9,6.3983]
[1743980895836,8.915,1563.0,1562.7,6.39879]
[1743980896035,8.915,1563.0,1562.6,6.39942]
[1743980896235,8.915,1563.0,1562.5,12.79978]
[1743980896480,39.3065,1562.9,1562.5,6.39984]
[1743980896778,38.415,1562.9,1562.3,0.06400054]
[1743980896962,38.415,1562.9,1562.8,6.39877]
[1743980897363,8.89,1563.3,1563.0,6.39792]
[1743980897534,8.89,1563.3,1563.0,6.39768]
[1743980897535,0.889,1563.2,1563.0,6.39768]
[1743980897734,8.89,1563.3,1563.1,6.39736]
[1743980897966,8.89,1563.3,1563.0,6.39768]
[1743980898174,8.89,1563.3,1563.2,6.39713]
[1743980898565,8.89,1563.3,1562.8,6.39852]
[1743980898786,0.889,1563.2,1563.0,6.39789]
[1743980899089,8.89,1563.3,1562.8,6.39877]
[1743980899394,38.415,1563.5,1563.4,6.39631]
[1743980899863,38.415,1563.5,1563.1,6.39729]
[1743980900043,39.3913,1563.5,1563.0,6.39768]
[1743980900247,3.0,1563.4,1562.5,0.9546]
[1743980900459,3.0,1563.4,1563.1,6.39738]
[1743980900688,39.3913,1563.5,1563.3,6.39643]
[1743980900885,38.415,1563.5,1563.3,6.39643]
[1743980901085,38.415,1563.5,1563.4,6.39631]
[1743980901313,38.415,1563.5,1563.2,6.39706]
[1743980901521,38.415,1563.5,1563.4,6.39631]
[1743980901708,3.9323,1563.8,1563.5,12.7914]
[1743980901709,0.9323,1563.8,1563.5,12.7914]
[1743980901888,0.9323,1563.8,1563.3,6.39642]
[1743980901889,9.8123,1563.8,1563.3,6.39642]
[1743980902185,9.8123,1563.8,1563.2,6.39707]
[1743980902186,3.0,1563.7,1563.2,6.39707]
[1743980902399,3.0,1563.7,1563.3,6.39667]
[1743980902716,3.0,1563.7,1563.1,6.39751]
[1743980903019,3.0,1563.7,1563.3,6.39645]
[1743980903243,0.9564,1564.2,1563.7,6.39508]
[1743980903400,9.8274,1564.2,1563.8,12.78906]
[1743980903744,9.8274,1564.2,1564.0,6.39368]
[1743980904043,9.8274,1564.2,1563.9,6.39419]
[1743980904203,9.8274,1564.2,1563.4,7.0842]
[1743980904405,9.8274,1564.2,1563.8,6.39446]
[1743980904606,9.8274,1564.2,1563.4,7.0842]
[1743980904805,9.8274,1564.2,1563.9,6.39412]
[1743980905004,9.8274,1564.2,1563.7,6.39488]
[1743980905205,3.0,1564.1,1563.1,0.9755]
[1743980905494,3.0,1564.1,1563.3,6.39667]
[1743980905714,9.8274,1564.2,1563.8,6.39429]
[1743980905912,3.0,1564.1,1563.8,6.39457]
[1743980906123,0.9564,1564.2,1563.1,1.45947166]
[1743980906431,9.7984,1564.2,1564.0,6.3937]
[1743980906635,8.842,1564.2,1563.9,6.39424]
[1743980906937,8.842,1564.2,1564.0,6.39369]
[1743980907232,8.842,1564.2,1563.9,6.39411]
[1743980907421,8.842,1564.2,1564.0,6.39372]
[1743980907616,8.842,1564.2,1563.8,6.39467]
[1743980907816,8.842,1564.2,1563.9,6.39427]
[1743980908235,7.30777,1564.1,1563.5,6.3955]
[1743980908438,0.9141,1564.1,1563.7,6.39508]
[1743980908621,7.30758,1564.1,1563.6,6.39543]
[1743980908819,7.30758,1564.1,1563.3,6.39671]
[1743980908820,0.9141,1564.1,1563.7,6.39493]
[1743980909021,0.9141,1564.1,1563.9,6.394]
[1743980909309,8.842,1564.2,1563.8,6.39454]
[1743980909510,8.842,1564.2,1564.0,6.39385]
[1743980909710,8.842,1564.2,1563.6,7.34054]
[1743980910020,8.842,1564.2,1563.9,6.39418]
[1743980910219,9.7262,1564.2,1563.8,6.39451]
[1743980910864,9.7262,1564.2,1563.7,12.78998]
[1743980911055,6.39386,1564.0,1562.9,0.9386]
[1743980911211,3.0,1563.8,1563.1,6.39754]
[1743980911405,8.781,1563.7,1563.3,6.39646]
[1743980911755,8.781,1563.7,1563.3,6.39665]
[1743980912052,22.25616123,1563.7,1563.1,6.3974]
[1743980912258,9.46556123,1563.7,1563.1,6.3974]
[1743980912548,9.46556123,1563.7,1562.4,6.4]
[1743980912549,38.405,1563.6,1562.6,7.31076]
[1743980912717,8.2542,1563.5,1563.0,6.39782]
[1743980912909,4.8579,1563.5,1562.7,6.39886]
[1743980913122,4.8579,1563.5,1563.0,6.39787]
[1743980913351,0.48579,1563.4,1563.0,12.79565]
[1743980913509,3.0,1563.2,1562.6,6.39945]
[1743980913820,6.39863,1562.9,1562.4,6.4004]
[1743980914009,47.797863,1562.8,1562.3,6.40059]
[1743980914208,47.797863,1562.8,1562.1,0.02]
[1743980914209,3.9517,1562.7,1562.1,0.02]
[1743980914447,3.9517,1562.2,1562.1,0.02]
[1743980914656,3.0,1561.4,1561.1,0.02]
[1743980914811,0.55,1561.2,1561.1,0.02]
[1743980915011,8.821,1561.2,1561.1,0.02]
[1743980915224,6.40765,1560.7,1560.0,1.0]
[1743980915442,9.40943,1560.2,1560.1,6.48575622]
[1743980915743,38.409,1560.2,1560.1,6.48575622]
[1743980915907,47.47,1560.2,1560.1,6.48575622]
[1743980916242,0.9155,1560.3,1560.1,5.93575622]
[1743980916410,38.409,1560.4,1560.2,6.40931]
[1743980916610,47.624,1561.0,1560.1,6.91875622]
[1743980916844,47.624,1561.0,1560.1,12.34537622]
[1743980916845,0.55,1560.8,1560.1,12.34537622]
[1743980917010,0.55,1560.7,1560.1,5.93575622]
[1743980917214,1.4663,1560.3,1560.1,5.93575622]
[1743980917427,47.725,1560.2,1560.1,5.93575622]
[1743980917743,0.5445,1560.0,1559.1,0.02]
[1743980917917,6.40773,1560.7,1559.2,6.41354]
[1743980918136,12.437,1560.6,1559.3,0.641354]
[1743980918335,0.5445,1560.5,1559.9,6.41062]
[1743980918542,3.5445,1560.5,1560.0,6.41]
[1743980918736,0.5445,1560.5,1559.7,12.82296]
[1743980918936,38.435,1560.7,1560.6,6.40779]
[1743980919226,38.435,1560.7,1560.5,6.40815]